[Event "Titled Tuesday Blitz May 16 Early 2023"]
[White "Koellner, Ruben Gideon"]
[Black "Ansh M Shah"]
[WhiteFideId "12993093"]
[BlackFideId "25033379"]
[WhiteElo "2314"]
[BlackElo "2084"]
[Result "1-0"]
[Round "05"]
[TimeControl "180+2"]
[Date "2023.05.16"]
[WhiteClock "0:00:23"]
[BlackClock "0:01:21"]

1. d4 {[%clk 0:02:45]}  Nf6 {[%clk 0:02:58]} 2. Nf3 {[%clk 0:01:16]}  e6 {[%clk 0:02:57]} 3. Nbd2 {[%clk 0:01:17]}  d5 {[%clk 0:02:58]} 4. e3 {[%clk 0:01:17]}  c5 {[%clk 0:02:58]} 5. c3 {[%clk 0:01:17]}  Nbd7 {[%clk 0:02:58]} 6. Bd3 {[%clk 0:01:17]}  b6 {[%clk 0:02:58]} 7. Ne5 {[%clk 0:01:13]}  Nxe5 {[%clk 0:02:56]} 8. dxe5 {[%clk 0:01:14]}  Nd7 {[%clk 0:02:57]} 9. f4 {[%clk 0:01:14]}  f6 {[%clk 0:02:56]} 10. Qh5+ {[%clk 0:01:13]}  g6 {[%clk 0:02:55]} 11. Bxg6+ {[%clk 0:01:13]}  hxg6 {[%clk 0:02:56]} 12. Qxh8 {[%clk 0:01:10]}  fxe5 {[%clk 0:02:56]} 13. Nf3 {[%clk 0:01:09]}  exf4 {[%clk 0:02:55]} 14. exf4 {[%clk 0:01:09]}  Qf6 {[%clk 0:02:54]} 15. Qxf6 {[%clk 0:01:06]}  Nxf6 {[%clk 0:02:55]} 16. Ne5 {[%clk 0:01:05]}  Ba6 {[%clk 0:02:55]} 17. Nxg6 {[%clk 0:01:03]}  Bd6 {[%clk 0:02:55]} 18. Ne5 {[%clk 0:01:03]}  Kd8 {[%clk 0:02:55]} 19. Nf7+ {[%clk 0:01:02]}  Ke7 {[%clk 0:02:55]} 20. Nxd6 {[%clk 0:01:03]}  Kxd6 {[%clk 0:02:56]} 21. h3 {[%clk 0:01:03]}  Rh8 {[%clk 0:02:53]} 22. Be3 {[%clk 0:01:01]}  Ng4 {[%clk 0:02:51]} 23. Kd2 {[%clk 0:01:01]}  Nf6 {[%clk 0:02:47]} 24. g4 {[%clk 0:01:01]}  Ne4+ {[%clk 0:02:48]} 25. Ke1 {[%clk 0:01:01]}  Ng3 {[%clk 0:02:32]} 26. Rh2 {[%clk 0:00:57]}  Nf1 {[%clk 0:02:30]} 27. Re2 {[%clk 0:00:28]}  Bxe2 {[%clk 0:01:41]} 28. Kxe2 {[%clk 0:00:29]}  Nxe3 {[%clk 0:01:41]} 29. Kxe3 {[%clk 0:00:30]}  Rxh3+ {[%clk 0:01:41]} 30. Kf2 {[%clk 0:00:30]}  Rh2+ {[%clk 0:01:41]} 31. Kg3 {[%clk 0:00:31]}  Rxb2 {[%clk 0:01:41]} 32. g5 {[%clk 0:00:32]}  Ke7 {[%clk 0:01:41]} 33. Rh1 {[%clk 0:00:32]}  Rc2 {[%clk 0:01:40]} 34. Rh7+ {[%clk 0:00:32]}  Kf8 {[%clk 0:01:40]} 35. Rxa7 {[%clk 0:00:31]}  Rxc3+ {[%clk 0:01:40]} 36. Kg4 {[%clk 0:00:32]}  d4 {[%clk 0:01:34]} 37. g6 {[%clk 0:00:29]}  Rc2 {[%clk 0:01:30]} 38. Kg5 {[%clk 0:00:29]}  Rf2 {[%clk 0:01:29]} 39. g7+ {[%clk 0:00:21]}  Kg8 {[%clk 0:01:29]} 40. Kg6 {[%clk 0:00:22]}  Rg2+ {[%clk 0:01:26]} 41. Kf6 {[%clk 0:00:23]}  Rg4 {[%clk 0:01:22]} 42. Ra8+ {[%clk 0:00:22]}  Kh7 {[%clk 0:01:21]} 43. Rh8# {[%clk 0:00:23]} 1-0


[Site "https://www.chess.com"]

[Event "Titled Tuesday Blitz May 16 Early 2023"]
[White "Madaminov, Mukhiddin"]
[Black "Ginzburg, Yakov"]
[WhiteFideId "14210703"]
[BlackFideId "4157176"]
[WhiteElo "2511"]
[BlackElo "2305"]
[Result "1-0"]
[Round "05"]
[TimeControl "180+2"]
[Date "2023.05.16"]
[WhiteClock "0:00:09"]
[BlackClock "0:00:04"]

1. Nf3 {[%clk 0:03:00]}  c5 {[%clk 0:02:56]} 2. e4 {[%clk 0:02:56]}  e6 {[%clk 0:02:55]} 3. d4 {[%clk 0:02:37]}  cxd4 {[%clk 0:02:55]} 4. Nxd4 {[%clk 0:02:29]}  Nf6 {[%clk 0:02:55]} 5. Nc3 {[%clk 0:02:28]}  Nc6 {[%clk 0:02:54]} 6. Nxc6 {[%clk 0:02:28]}  bxc6 {[%clk 0:02:54]} 7. e5 {[%clk 0:02:28]}  Nd5 {[%clk 0:02:54]} 8. Ne4 {[%clk 0:02:29]}  Qc7 {[%clk 0:02:55]} 9. f4 {[%clk 0:02:29]}  Qb6 {[%clk 0:02:55]} 10. c4 {[%clk 0:02:28]}  Ne3 {[%clk 0:02:55]} 11. Qd3 {[%clk 0:02:28]}  Bb4+ {[%clk 0:02:55]} 12. Bd2 {[%clk 0:02:28]}  Bxd2+ {[%clk 0:02:37]} 13. Qxd2 {[%clk 0:02:24]}  Rb8 {[%clk 0:01:45]} 14. Nd6+ {[%clk 0:02:15]}  Ke7 {[%clk 0:01:45]} 15. b3 {[%clk 0:02:15]}  f6 {[%clk 0:01:38]} 16. Ke2 {[%clk 0:02:13]}  Ng4 {[%clk 0:01:33]} 17. Kf3 {[%clk 0:02:04]}  h5 {[%clk 0:01:17]} 18. Re1 {[%clk 0:01:32]}  fxe5 {[%clk 0:01:15]} 19. fxe5 {[%clk 0:01:29]}  Rf8+ {[%clk 0:01:14]} 20. Kg3 {[%clk 0:01:29]}  Kd8 {[%clk 0:00:28]} 21. h3 {[%clk 0:01:07]}  Nf2 {[%clk 0:00:23]} 22. Rh2 {[%clk 0:00:55]}  Kc7 {[%clk 0:00:22]} 23. Qe3 {[%clk 0:00:38]}  Qa5 {[%clk 0:00:17]} 24. Be2 {[%clk 0:00:37]}  Qxe1 {[%clk 0:00:13]} 25. Qxa7+ {[%clk 0:00:12]}  Bb7 {[%clk 0:00:12]} 26. Rh1 {[%clk 0:00:09]}  Nxh1+ {[%clk 0:00:10]} 27. Kh2 {[%clk 0:00:10]}  Qg3+ {[%clk 0:00:08]} 28. Kxh1 {[%clk 0:00:09]}  Qxe5 {[%clk 0:00:07]} 29. c5 {[%clk 0:00:09]}  Qa1+ {[%clk 0:00:04]} 30. Kh2 {[%clk 0:00:09]}  Qe1 {[%clk 0:00:04]} 31. Qb6# {[%clk 0:00:09]} 1-0


[Site "https://www.chess.com"]

[Event "Titled Tuesday Blitz May 16 Early 2023"]
[White "Estrada Nieto, Julian"]
[Black "Mekhitarian, Krikor Sevag"]
[WhiteFideId "5101018"]
[BlackFideId "2107660"]
[WhiteElo "2161"]
[BlackElo "2604"]
[Result "0-1"]
[Round "05"]
[TimeControl "180+2"]
[Date "2023.05.16"]
[WhiteClock "0:00:00"]
[BlackClock "0:00:03"]

1. e4 {[%clk 0:03:00]}  e6 {[%clk 0:02:59]} 2. d4 {[%clk 0:03:00]}  d5 {[%clk 0:02:59]} 3. Nd2 {[%clk 0:03:00]}  c5 {[%clk 0:02:58]} 4. exd5 {[%clk 0:03:00]}  Qxd5 {[%clk 0:02:58]} 5. Ngf3 {[%clk 0:03:01]}  cxd4 {[%clk 0:02:59]} 6. Bc4 {[%clk 0:03:02]}  Qd7 {[%clk 0:02:59]} 7. O-O {[%clk 0:03:02]}  Nc6 {[%clk 0:02:58]} 8. Nb3 {[%clk 0:03:03]}  a6 {[%clk 0:02:58]} 9. Nbxd4 {[%clk 0:03:02]}  Nxd4 {[%clk 0:02:56]} 10. Nxd4 {[%clk 0:03:02]}  Qc7 {[%clk 0:02:56]} 11. Bb3 {[%clk 0:02:58]}  Bd6 {[%clk 0:02:50]} 12. h3 {[%clk 0:02:46]}  Ne7 {[%clk 0:02:47]} 13. c3 {[%clk 0:02:29]}  O-O {[%clk 0:02:46]} 14. Bc2 {[%clk 0:02:26]}  Ng6 {[%clk 0:02:42]} 15. Qh5 {[%clk 0:02:22]}  Bd7 {[%clk 0:01:12]} 16. Nf3 {[%clk 0:02:06]}  Qc5 {[%clk 0:01:11]} 17. Qxc5 {[%clk 0:01:31]}  Bxc5 {[%clk 0:01:11]} 18. Be4 {[%clk 0:01:30]}  f5 {[%clk 0:01:02]} 19. Bc2 {[%clk 0:01:19]}  e5 {[%clk 0:00:35]} 20. Bb3+ {[%clk 0:01:17]}  Kh8 {[%clk 0:00:36]} 21. Rd1 {[%clk 0:00:58]}  Bc6 {[%clk 0:00:33]} 22. Ng5 {[%clk 0:00:58]}  h6 {[%clk 0:00:25]} 23. Ne6 {[%clk 0:00:55]}  Bb6 {[%clk 0:00:25]} 24. Nxf8 {[%clk 0:00:54]}  Rxf8 {[%clk 0:00:26]} 25. Be3 {[%clk 0:00:53]}  Bxe3 {[%clk 0:00:23]} 26. fxe3 {[%clk 0:00:53]}  f4 {[%clk 0:00:24]} 27. Rd6 {[%clk 0:00:29]}  Nh4 {[%clk 0:00:23]} 28. exf4 {[%clk 0:00:29]}  exf4 {[%clk 0:00:20]} 29. Bd5 {[%clk 0:00:20]}  Nf5 {[%clk 0:00:20]} 30. Rxc6 {[%clk 0:00:19]}  bxc6 {[%clk 0:00:19]} 31. Bxc6 {[%clk 0:00:19]}  Rb8 {[%clk 0:00:18]} 32. b3 {[%clk 0:00:14]}  Ne3 {[%clk 0:00:17]} 33. Re1 {[%clk 0:00:11]}  a5 {[%clk 0:00:17]} 34. g3 {[%clk 0:00:10]}  Rc8 {[%clk 0:00:17]} 35. gxf4 {[%clk 0:00:09]}  Nf5 {[%clk 0:00:09]} 36. Re8+ {[%clk 0:00:09]}  Rxe8 {[%clk 0:00:07]} 37. Bxe8 {[%clk 0:00:10]}  Ng3 {[%clk 0:00:07]} 38. Kf2 {[%clk 0:00:10]}  Ne4+ {[%clk 0:00:07]} 39. Ke3 {[%clk 0:00:09]}  Nxc3 {[%clk 0:00:08]} 40. a4 {[%clk 0:00:09]}  Nd5+ {[%clk 0:00:09]} 41. Kf3 {[%clk 0:00:08]}  Kg8 {[%clk 0:00:08]} 42. Bb5 {[%clk 0:00:08]}  Kf8 {[%clk 0:00:08]} 43. Bc4 {[%clk 0:00:08]}  Nb4 {[%clk 0:00:09]} 44. Kg4 {[%clk 0:00:07]}  Ke7 {[%clk 0:00:09]} 45. Kf5 {[%clk 0:00:07]}  Nc6 {[%clk 0:00:09]} 46. Kg6 {[%clk 0:00:07]}  Kf8 {[%clk 0:00:10]} 47. Bb5 {[%clk 0:00:06]}  Ne7+ {[%clk 0:00:09]} 48. Kh7 {[%clk 0:00:04]}  Kf7 {[%clk 0:00:09]} 49. Bc4+ {[%clk 0:00:04]}  Kf6 {[%clk 0:00:10]} 50. h4 {[%clk 0:00:04]}  Ng6 {[%clk 0:00:04]} 51. h5 {[%clk 0:00:02]}  Ne7 {[%clk 0:00:04]} 52. Kh8 {[%clk 0:00:01]}  Nc6 {[%clk 0:00:04]} 53. Kg8 {[%clk 0:00:01]}  Nd4 {[%clk 0:00:05]} 54. Kf8 {[%clk 0:00:01]}  Nc6 {[%clk 0:00:02]} 55. Ke8 {[%clk 0:00:01]}  Nb4 {[%clk 0:00:02]} 56. Kd7 {[%clk 0:00:00]}  g6 {[%clk 0:00:03]} 0-1


[Site "https://www.chess.com"]

[Event "Titled Tuesday Blitz May 16 Early 2023"]
[White "Quesada Perez, Yuniesky"]
[Black "Tokman, Ariel"]
[WhiteFideId "3504409"]
[BlackFideId "117420"]
[WhiteElo "2585"]
[BlackElo "2263"]
[Result "1/2-1/2"]
[Round "05"]
[TimeControl "180+2"]
[Date "2023.05.16"]
[WhiteClock "0:00:04"]
[BlackClock "0:00:10"]

1. e4 {[%clk 0:03:00]}  c5 {[%clk 0:02:59]} 2. Nf3 {[%clk 0:02:57]}  e6 {[%clk 0:03:00]} 3. d4 {[%clk 0:02:57]}  cxd4 {[%clk 0:03:00]} 4. Nxd4 {[%clk 0:02:57]}  a6 {[%clk 0:03:01]} 5. Be2 {[%clk 0:02:56]}  Qc7 {[%clk 0:02:53]} 6. O-O {[%clk 0:02:53]}  Nf6 {[%clk 0:02:53]} 7. Nc3 {[%clk 0:02:52]}  Be7 {[%clk 0:02:32]} 8. f4 {[%clk 0:02:50]}  d6 {[%clk 0:02:31]} 9. Be3 {[%clk 0:02:47]}  b5 {[%clk 0:02:30]} 10. Bf3 {[%clk 0:02:46]}  Bb7 {[%clk 0:02:29]} 11. e5 {[%clk 0:02:36]}  dxe5 {[%clk 0:02:18]} 12. Bxb7 {[%clk 0:02:25]}  exd4 {[%clk 0:02:02]} 13. Bxa8 {[%clk 0:02:23]}  dxe3 {[%clk 0:02:01]} 14. Kh1 {[%clk 0:02:19]}  O-O {[%clk 0:02:00]} 15. Qf3 {[%clk 0:02:19]}  Nbd7 {[%clk 0:01:51]} 16. Be4 {[%clk 0:02:18]}  Nb6 {[%clk 0:01:46]} 17. Bd3 {[%clk 0:01:51]}  Bc5 {[%clk 0:01:30]} 18. Ne4 {[%clk 0:01:39]}  Nxe4 {[%clk 0:01:26]} 19. Qxe4 {[%clk 0:01:35]}  g6 {[%clk 0:01:27]} 20. b4 {[%clk 0:01:29]}  Be7 {[%clk 0:01:22]} 21. Qxe3 {[%clk 0:01:11]}  Nd5 {[%clk 0:01:14]} 22. Qe4 {[%clk 0:01:02]}  Nxb4 {[%clk 0:01:11]} 23. a4 {[%clk 0:01:00]}  Nxd3 {[%clk 0:01:03]} 24. cxd3 {[%clk 0:01:00]}  Bf6 {[%clk 0:00:59]} 25. Rac1 {[%clk 0:00:57]}  Qd7 {[%clk 0:00:56]} 26. axb5 {[%clk 0:00:49]}  axb5 {[%clk 0:00:57]} 27. Rfd1 {[%clk 0:00:45]}  Rd8 {[%clk 0:00:55]} 28. Qc6 {[%clk 0:00:44]}  Qd4 {[%clk 0:00:49]} 29. Qe4 {[%clk 0:00:36]}  b4 {[%clk 0:00:41]} 30. Qxd4 {[%clk 0:00:34]}  Bxd4 {[%clk 0:00:38]} 31. Rb1 {[%clk 0:00:24]}  Bc3 {[%clk 0:00:34]} 32. g3 {[%clk 0:00:22]}  h5 {[%clk 0:00:33]} 33. Kg2 {[%clk 0:00:22]}  Kg7 {[%clk 0:00:34]} 34. Kf3 {[%clk 0:00:22]}  Ra8 {[%clk 0:00:33]} 35. d4 {[%clk 0:00:21]}  Ra2 {[%clk 0:00:32]} 36. h3 {[%clk 0:00:20]}  Rh2 {[%clk 0:00:31]} 37. Rh1 {[%clk 0:00:17]}  Rxh1 {[%clk 0:00:27]} 38. Rxh1 {[%clk 0:00:17]}  Bxd4 {[%clk 0:00:28]} 39. Ke4 {[%clk 0:00:16]}  Bc3 {[%clk 0:00:27]} 40. Rc1 {[%clk 0:00:15]}  Kf6 {[%clk 0:00:27]} 41. g4 {[%clk 0:00:15]}  hxg4 {[%clk 0:00:26]} 42. hxg4 {[%clk 0:00:16]}  g5 {[%clk 0:00:27]} 43. Rf1 {[%clk 0:00:13]}  gxf4 {[%clk 0:00:26]} 44. Rxf4+ {[%clk 0:00:14]}  Kg6 {[%clk 0:00:27]} 45. Rf3 {[%clk 0:00:13]}  Bf6 {[%clk 0:00:22]} 46. Rd3 {[%clk 0:00:11]}  Bc3 {[%clk 0:00:21]} 47. Rf3 {[%clk 0:00:09]}  Kg7 {[%clk 0:00:19]} 48. Kd3 {[%clk 0:00:08]}  Kg6 {[%clk 0:00:19]} 49. Kc4 {[%clk 0:00:08]}  f6 {[%clk 0:00:19]} 50. Re3 {[%clk 0:00:07]}  e5 {[%clk 0:00:19]} 51. Rf3 {[%clk 0:00:06]}  Kg5 {[%clk 0:00:20]} 52. Rf5+ {[%clk 0:00:06]}  Kg6 {[%clk 0:00:18]} 53. Kd3 {[%clk 0:00:05]}  Bd4 {[%clk 0:00:18]} 54. Kc4 {[%clk 0:00:04]}  Bc3 {[%clk 0:00:13]} 55. Kb3 {[%clk 0:00:04]}  Kg7 {[%clk 0:00:11]} 56. Kc4 {[%clk 0:00:04]}  Kg6 {[%clk 0:00:10]} 1/2-1/2


[Site "https://www.chess.com"]

[Event "Titled Tuesday Blitz May 16 Early 2023"]
[White "Petrosyan, Manuel"]
[Black "Maxfan2008"]
[WhiteFideId "13300857"]
[WhiteElo "2576"]
[BlackElo "2527"]
[Result "1-0"]
[Round "05"]
[TimeControl "180+2"]
[Date "2023.05.16"]
[WhiteClock "0:00:05"]
[BlackClock "0:00:09"]

1. e4 {[%clk 0:03:00]}  c5 {[%clk 0:02:58]} 2. Nf3 {[%clk 0:03:00]}  d6 {[%clk 0:02:58]} 3. d4 {[%clk 0:03:00]}  cxd4 {[%clk 0:02:59]} 4. Nxd4 {[%clk 0:03:00]}  Nf6 {[%clk 0:02:59]} 5. Nc3 {[%clk 0:03:00]}  a6 {[%clk 0:02:59]} 6. Be2 {[%clk 0:02:59]}  e5 {[%clk 0:02:59]} 7. Nb3 {[%clk 0:03:00]}  Be7 {[%clk 0:02:59]} 8. O-O {[%clk 0:03:00]}  O-O {[%clk 0:02:59]} 9. Be3 {[%clk 0:03:00]}  Be6 {[%clk 0:02:59]} 10. Re1 {[%clk 0:02:58]}  Nbd7 {[%clk 0:02:55]} 11. a4 {[%clk 0:02:57]}  Rc8 {[%clk 0:02:54]} 12. a5 {[%clk 0:02:57]}  Qc7 {[%clk 0:02:54]} 13. Bf3 {[%clk 0:02:55]}  Qc6 {[%clk 0:02:49]} 14. Re2 {[%clk 0:02:43]}  Nc5 {[%clk 0:02:47]} 15. Nd5 {[%clk 0:02:34]}  Bxd5 {[%clk 0:02:35]} 16. exd5 {[%clk 0:02:32]}  Qc7 {[%clk 0:02:28]} 17. Nxc5 {[%clk 0:01:32]}  dxc5 {[%clk 0:02:26]} 18. g3 {[%clk 0:01:18]}  Bd6 {[%clk 0:02:20]} 19. c4 {[%clk 0:01:14]}  h6 {[%clk 0:02:17]} 20. Bd2 {[%clk 0:01:06]}  Nd7 {[%clk 0:02:09]} 21. Bg2 {[%clk 0:00:45]}  Rce8 {[%clk 0:02:04]} 22. Bc3 {[%clk 0:00:44]}  f5 {[%clk 0:01:55]} 23. f3 {[%clk 0:00:37]}  Nf6 {[%clk 0:01:53]} 24. Qc2 {[%clk 0:00:35]}  g6 {[%clk 0:01:52]} 25. Rae1 {[%clk 0:00:34]}  Re7 {[%clk 0:01:40]} 26. Bd2 {[%clk 0:00:30]}  Kh7 {[%clk 0:01:39]} 27. Qc1 {[%clk 0:00:28]}  Ng8 {[%clk 0:01:32]} 28. Bh3 {[%clk 0:00:22]}  Rfe8 {[%clk 0:01:31]} 29. Qc2 {[%clk 0:00:21]}  Nf6 {[%clk 0:01:26]} 30. Bxf5 {[%clk 0:00:17]}  gxf5 {[%clk 0:01:27]} 31. Qxf5+ {[%clk 0:00:17]}  Kg7 {[%clk 0:01:26]} 32. Bxh6+ {[%clk 0:00:18]}  Kxh6 {[%clk 0:01:23]} 33. Qxf6+ {[%clk 0:00:18]}  Kh7 {[%clk 0:01:21]} 34. Re4 {[%clk 0:00:18]}  Rg7 {[%clk 0:01:18]} 35. Rh4+ {[%clk 0:00:17]}  Kg8 {[%clk 0:01:18]} 36. Ree4 {[%clk 0:00:16]}  Qf7 {[%clk 0:01:15]} 37. Qxd6 {[%clk 0:00:15]}  Qxf3 {[%clk 0:01:13]} 38. Qh6 {[%clk 0:00:10]}  Qd1+ {[%clk 0:00:42]} 39. Kg2 {[%clk 0:00:10]}  Qc2+ {[%clk 0:00:42]} 40. Kh3 {[%clk 0:00:09]}  Qb1 {[%clk 0:00:35]} 41. Qh8+ {[%clk 0:00:08]}  Kf7 {[%clk 0:00:35]} 42. Qh5+ {[%clk 0:00:08]}  Rg6 {[%clk 0:00:29]} 43. Qh7+ {[%clk 0:00:04]}  Kf6 {[%clk 0:00:24]} 44. Rhf4+ {[%clk 0:00:03]}  exf4 {[%clk 0:00:23]} 45. Rxf4+ {[%clk 0:00:04]}  Ke5 {[%clk 0:00:21]} 46. Qc7+ {[%clk 0:00:04]}  Rd6 {[%clk 0:00:20]} 47. Qg7+ {[%clk 0:00:04]}  Rf6 {[%clk 0:00:09]} 48. Qxf6# {[%clk 0:00:05]} 1-0


[Site "https://www.chess.com"]

[Event "Titled Tuesday Blitz May 16 Early 2023"]
[White "Zemlyanskii, Ivan"]
[Black "Bilan, Danila"]
[WhiteFideId "24249971"]
[BlackFideId "24161918"]
[WhiteElo "2421"]
[BlackElo "2182"]
[Result "1-0"]
[Round "05"]
[TimeControl "180+2"]
[Date "2023.05.16"]
[WhiteClock "0:00:56"]
[BlackClock "0:00:00"]

1. d4 {[%clk 0:03:00]}  d5 {[%clk 0:02:59]} 2. Bf4 {[%clk 0:03:01]}  Nf6 {[%clk 0:02:59]} 3. e3 {[%clk 0:03:01]}  c5 {[%clk 0:02:59]} 4. c3 {[%clk 0:02:58]}  Nc6 {[%clk 0:02:58]} 5. Nf3 {[%clk 0:02:56]}  Qb6 {[%clk 0:02:56]} 6. Qc2 {[%clk 0:02:56]}  g6 {[%clk 0:02:52]} 7. Nbd2 {[%clk 0:02:44]}  Bf5 {[%clk 0:02:51]} 8. dxc5 {[%clk 0:02:44]}  Bxc2 {[%clk 0:02:18]} 9. cxb6 {[%clk 0:02:44]}  axb6 {[%clk 0:02:19]} 10. Nd4 {[%clk 0:02:34]}  Ba4 {[%clk 0:02:00]} 11. Nb5 {[%clk 0:02:23]}  Bxb5 {[%clk 0:01:20]} 12. Bxb5 {[%clk 0:02:20]}  Nd7 {[%clk 0:01:14]} 13. e4 {[%clk 0:01:52]}  dxe4 {[%clk 0:00:41]} 14. Nxe4 {[%clk 0:01:53]}  Bg7 {[%clk 0:00:32]} 15. O-O {[%clk 0:01:42]}  O-O {[%clk 0:00:22]} 16. Rfd1 {[%clk 0:01:36]}  Nde5 {[%clk 0:00:17]} 17. Be3 {[%clk 0:01:31]}  f5 {[%clk 0:00:13]} 18. Ng5 {[%clk 0:01:31]}  f4 {[%clk 0:00:07]} 19. Bxb6 {[%clk 0:01:27]}  f3 {[%clk 0:00:07]} 20. Nxf3 {[%clk 0:01:21]}  Nxf3+ {[%clk 0:00:07]} 21. gxf3 {[%clk 0:01:22]}  Ne5 {[%clk 0:00:05]} 22. Be2 {[%clk 0:01:14]}  Rf6 {[%clk 0:00:02]} 23. Bc5 {[%clk 0:01:07]}  Nxf3+ {[%clk 0:00:01]} 24. Bxf3 {[%clk 0:01:08]}  Rxf3 {[%clk 0:00:02]} 25. Rd7 {[%clk 0:01:03]}  Raf8 {[%clk 0:00:02]} 26. Rxb7 {[%clk 0:01:01]}  R8f5 {[%clk 0:00:00]} 27. Be3 {[%clk 0:00:56]} 1-0


[Site "https://www.chess.com"]

[Event "Titled Tuesday Blitz May 16 Early 2023"]
[White "Yelisieiev, Yevhenii"]
[Black "Rozman, Levy"]
[WhiteFideId "14139642"]
[BlackFideId "2039877"]
[WhiteElo "2403"]
[BlackElo "2376"]
[Result "0-1"]
[Round "05"]
[TimeControl "180+2"]
[Date "2023.05.16"]
[WhiteClock "0:00:00"]
[BlackClock "0:01:56"]

1. d4 {[%clk 0:03:00]}  g6 {[%clk 0:02:58]} 2. Nf3 {[%clk 0:03:01]}  Bg7 {[%clk 0:02:59]} 3. g3 {[%clk 0:03:01]}  d6 {[%clk 0:02:59]} 4. Bg2 {[%clk 0:03:02]}  Nc6 {[%clk 0:03:00]} 5. O-O {[%clk 0:02:59]}  Bd7 {[%clk 0:03:01]} 6. b3 {[%clk 0:02:40]}  Qc8 {[%clk 0:03:00]} 7. Re1 {[%clk 0:02:35]}  Bh3 {[%clk 0:03:00]} 8. Bh1 {[%clk 0:02:35]}  h5 {[%clk 0:03:00]} 9. Bb2 {[%clk 0:02:23]}  h4 {[%clk 0:03:00]} 10. Nbd2 {[%clk 0:02:14]}  hxg3 {[%clk 0:03:00]} 11. hxg3 {[%clk 0:01:58]}  Qf5 {[%clk 0:03:00]} 12. e4 {[%clk 0:01:49]}  Qh5 {[%clk 0:03:00]} 13. Nh4 {[%clk 0:01:48]}  Qh7 {[%clk 0:03:00]} 14. e5 {[%clk 0:01:18]}  O-O-O {[%clk 0:02:59]} 15. exd6 {[%clk 0:00:47]}  Rxd6 {[%clk 0:03:00]} 16. Ne4 {[%clk 0:00:43]}  Rd5 {[%clk 0:03:00]} 17. c4 {[%clk 0:00:38]}  Rh5 {[%clk 0:02:59]} 18. Bf3 {[%clk 0:00:28]}  Rxh4 {[%clk 0:02:57]} 19. Ng5 {[%clk 0:00:23]}  Nd8 {[%clk 0:02:33]} 20. Nxh7 {[%clk 0:00:23]}  R4xh7 {[%clk 0:02:34]} 21. Qd2 {[%clk 0:00:18]}  Bd7 {[%clk 0:02:30]} 22. d5 {[%clk 0:00:17]}  Nf6 {[%clk 0:02:27]} 23. Re2 {[%clk 0:00:15]}  Bg4 {[%clk 0:02:26]} 24. Bg2 {[%clk 0:00:15]}  Bxe2 {[%clk 0:02:20]} 25. Qxe2 {[%clk 0:00:15]}  e6 {[%clk 0:02:20]} 26. Re1 {[%clk 0:00:14]}  Rh5 {[%clk 0:02:18]} 27. dxe6 {[%clk 0:00:12]}  Nxe6 {[%clk 0:02:18]} 28. Qf3 {[%clk 0:00:09]}  Nc5 {[%clk 0:02:15]} 29. Bxf6 {[%clk 0:00:05]}  Rf5 {[%clk 0:02:16]} 30. Qg4 {[%clk 0:00:04]}  Bxf6 {[%clk 0:02:15]} 31. f4 {[%clk 0:00:01]}  Bd4+ {[%clk 0:02:07]} 32. Kf1 {[%clk 0:00:01]}  Bc3 {[%clk 0:02:08]} 33. b4 {[%clk 0:00:01]}  Bxe1 {[%clk 0:02:08]} 34. Kxe1 {[%clk 0:00:01]}  Re8+ {[%clk 0:02:08]} 35. Kd1 {[%clk 0:00:02]}  Ne4 {[%clk 0:02:07]} 36. Bxe4 {[%clk 0:00:02]}  Rxe4 {[%clk 0:02:08]} 37. Qh3 {[%clk 0:00:02]}  Re8 {[%clk 0:02:02]} 38. Qh8 {[%clk 0:00:00]}  Rxh8 {[%clk 0:01:56]} 0-1


[Site "https://www.chess.com"]

[Event "Titled Tuesday Blitz May 16 Early 2023"]
[White "Degenbaev, Aziz"]
[Black "Weetik, Vjacheslav"]
[WhiteFideId "13802640"]
[BlackFideId "4153472"]
[WhiteElo "2152"]
[BlackElo "2469"]
[Result "0-1"]
[Round "05"]
[TimeControl "180+2"]
[Date "2023.05.16"]
[WhiteClock "0:00:00"]
[BlackClock "0:00:07"]

1. e4 {[%clk 0:03:00]}  c5 {[%clk 0:02:57]} 2. Nf3 {[%clk 0:02:59]}  Nc6 {[%clk 0:02:58]} 3. Bb5 {[%clk 0:02:58]}  g6 {[%clk 0:02:58]} 4. O-O {[%clk 0:02:57]}  Bg7 {[%clk 0:02:58]} 5. c3 {[%clk 0:02:57]}  Nf6 {[%clk 0:02:58]} 6. Re1 {[%clk 0:02:56]}  O-O {[%clk 0:02:57]} 7. d4 {[%clk 0:02:56]}  d5 {[%clk 0:02:56]} 8. e5 {[%clk 0:02:54]}  Ne4 {[%clk 0:02:55]} 9. Bxc6 {[%clk 0:02:30]}  bxc6 {[%clk 0:02:55]} 10. Be3 {[%clk 0:02:29]}  Qb6 {[%clk 0:02:46]} 11. Qc1 {[%clk 0:02:25]}  Rb8 {[%clk 0:02:29]} 12. b3 {[%clk 0:02:24]}  cxd4 {[%clk 0:02:02]} 13. cxd4 {[%clk 0:02:14]}  f6 {[%clk 0:01:44]} 14. Nc3 {[%clk 0:02:02]}  Nxc3 {[%clk 0:01:32]} 15. Qxc3 {[%clk 0:02:02]}  Bg4 {[%clk 0:01:33]} 16. Nd2 {[%clk 0:01:54]}  Rbc8 {[%clk 0:01:04]} 17. b4 {[%clk 0:01:45]}  Qb8 {[%clk 0:00:54]} 18. Bf4 {[%clk 0:01:33]}  g5 {[%clk 0:00:44]} 19. Bg3 {[%clk 0:00:42]}  f5 {[%clk 0:00:43]} 20. f3 {[%clk 0:00:43]}  Bh5 {[%clk 0:00:41]} 21. Nb3 {[%clk 0:00:41]}  f4 {[%clk 0:00:38]} 22. Bf2 {[%clk 0:00:41]}  e6 {[%clk 0:00:36]} 23. Nc5 {[%clk 0:00:37]}  Rfe8 {[%clk 0:00:32]} 24. a4 {[%clk 0:00:30]}  Qc7 {[%clk 0:00:31]} 25. Rac1 {[%clk 0:00:27]}  Qf7 {[%clk 0:00:30]} 26. a5 {[%clk 0:00:24]}  Kh8 {[%clk 0:00:27]} 27. a6 {[%clk 0:00:23]}  g4 {[%clk 0:00:27]} 28. fxg4 {[%clk 0:00:20]}  Bxg4 {[%clk 0:00:28]} 29. Nb7 {[%clk 0:00:21]}  Qg6 {[%clk 0:00:26]} 30. Nd6 {[%clk 0:00:20]}  Bh6 {[%clk 0:00:17]} 31. Nxe8 {[%clk 0:00:18]}  Rxe8 {[%clk 0:00:16]} 32. b5 {[%clk 0:00:10]}  cxb5 {[%clk 0:00:16]} 33. Rb1 {[%clk 0:00:03]}  Rg8 {[%clk 0:00:15]} 34. g3 {[%clk 0:00:03]}  Bf5 {[%clk 0:00:10]} 35. Rxb5 {[%clk 0:00:02]}  Be4 {[%clk 0:00:11]} 36. Rb7 {[%clk 0:00:01]}  fxg3 {[%clk 0:00:07]} 37. hxg3 {[%clk 0:00:00]}  Qh5 {[%clk 0:00:07]} 0-1


[Site "https://www.chess.com"]